fUST/lending_fUST_20250806
["ID","MTS","AMOUNT","RATE_DAILY","PERIOD"]
[377506248,1754434240187,-460.0,0.00027397,2]
[377506249,1754434240197,-460.0,0.00027397,2]
[377506250,1754434240207,-460.0,0.00027397,2]
[377506251,1754434240216,-460.0,0.00027397,2]
[377506252,1754434240226,-220.57699254,0.00027397,2]
[377506253,1754434240235,-648.16,0.00027397,2]
[377506254,1754434240244,-460.0,0.00027397,2]
[377506255,1754434240254,-460.0,0.00027397,2]
[377506256,1754434240263,-460.0,0.00027397,2]
[377506257,1754434240272,-468.73380115,0.00027397,2]
[377506258,1754434240281,-460.0,0.00027397,2]
[377506259,1754434240291,-460.0,0.00027397,2]
[377506260,1754434240301,-460.0,0.00027397,2]
[377506261,1754434240310,-553.95421163,0.00027397,2]
[377506262,1754434240320,-460.0,0.00027397,2]
[377506263,1754434240332,-197.12379959,0.00027397,2]
[377506264,1754434240341,-460.0,0.00027397,2]
[377506265,1754434240351,-460.0,0.00027397,2]
[377506266,1754434240360,-216.35496516,0.00027397,2]
[377506267,1754434240369,-460.0,0.00027397,2]
[377506268,1754434240378,-460.0,0.00027397,2]
[377506269,1754434240387,-460.0,0.00027397,2]
[377506270,1754434240396,-500.0,0.00027397,2]
[377506271,1754434240406,-460.0,0.00027397,2]
[377506272,1754434240416,-677.8,0.00027397,2]
[377506273,1754434240426,-460.0,0.00027397,2]
[377506274,1754434240436,-460.0,0.00027397,2]
[377506275,1754434240445,-460.0,0.00027397,2]
[377506276,1754434240455,-3436.49,0.00027397,2]
[377506277,1754434240464,-170.68261476,0.00027397,2]
[377506278,1754434240474,-460.0,0.00027397,2]
[377506279,1754434240483,-460.0,0.00027397,2]
[377506280,1754434240493,-460.0,0.00027397,2]
[377506281,1754434240502,-460.0,0.00027397,2]
[377506282,1754434240511,-219.14431809,0.00027397,2]
[377506283,1754434240521,-460.0,0.00027397,2]
[377506284,1754434240531,-460.0,0.00027397,2]
[377506285,1754434240540,-1220.29,0.00027397,2]
[377506286,1754434240550,-460.0,0.00027397,2]
[377506287,1754434240559,-460.0,0.00027397,2]
[377506288,1754434240569,-1451.36,0.00027397,2]
[377506289,1754434240578,-460.0,0.00027397,2]
[377506290,1754434240588,-460.0,0.00027397,2]
[377506291,1754434240597,-460.0,0.00027397,2]
[377506292,1754434240607,-460.0,0.00027397,2]
[377506293,1754434240617,-460.0,0.00027397,2]
[377506294,1754434240627,-460.0,0.00027397,2]
[377506295,1754434240637,-1040.08,0.00027397,2]
[377506296,1754434240647,-460.0,0.00027397,2]
[377506297,1754434240656,-460.0,0.00027397,2]
[377506298,1754434240666,-460.0,0.00027397,2]
[377506299,1754434240676,-460.0,0.00027397,2]
[377506300,1754434240685,-460.0,0.00027397,2]
[377506301,1754434240695,-460.0,0.00027397,2]
[377506302,1754434240704,-460.0,0.00027397,2]
[377506303,1754434240716,-460.0,0.00027397,2]
[377506304,1754434240725,-460.0,0.00027397,2]
[377506305,1754434240735,-460.0,0.00027397,2]
[377506306,1754434240744,-460.0,0.00027397,2]
[377506307,1754434240754,-460.0,0.00027397,2]
[377506308,1754434240763,-464.47872777,0.00027397,2]
[377506309,1754434240772,-460.0,0.00027397,2]
[377506310,1754434240782,-54041.88,0.00027397,2]
[377506311,1754434240791,-500.78,0.00027397,2]
[377506312,1754434240800,-460.0,0.00027397,2]
[377506313,1754434240810,-460.0,0.00027397,2]
[377506314,1754434240819,-465.26,0.00027397,2]
[377506315,1754434240828,-1963.37,0.00027397,2]
[377506316,1754434240837,-460.0,0.00027397,2]
[377506317,1754434240847,-460.0,0.00027397,2]
[377506318,1754434240856,-460.0,0.00027397,2]
[377506319,1754434240865,-460.0,0.00027397,2]
[377506320,1754434240875,-534.73,0.00027397,2]
[377506321,1754434240885,-460.0,0.00027397,2]
[377506322,1754434240894,-513.61,0.00027397,2]
[377506323,1754434240903,-460.0,0.00027397,2]
[377506324,1754434240913,-460.0,0.00027397,2]
[377506325,1754434240922,-791.49,0.00027397,2]
[377506326,1754434240932,-460.0,0.00027397,2]
[377506327,1754434240942,-460.0,0.00027397,2]
[377506328,1754434240951,-460.0,0.00027397,2]
[377506330,1754434240962,-583.77,0.00027397,2]
[377506331,1754434240971,-460.0,0.00027397,2]
[377506332,1754434240981,-460.0,0.00027397,2]
[377506333,1754434240991,-545.48,0.00027397,2]
[377506334,1754434241000,-621.9,0.00027397,2]
[377506335,1754434241009,-460.0,0.00027397,2]
[377506336,1754434241018,-460.0,0.00027397,2]
[377506338,1754434241027,-582.79929482,0.00027397,2]
[377506339,1754434241037,-460.0,0.00027397,2]
[377506340,1754434241047,-527.02,0.00027397,2]
[377506341,1754434241056,-827.69,0.00027397,2]
[377506343,1754434241065,-465.33961852,0.00027397,2]
[377506344,1754434241074,-460.0,0.00027397,2]
[377506345,1754434241084,-990.21,0.00027397,2]
[377506347,1754434241092,-460.0,0.00027397,2]
[377506349,1754434241102,-708.76,0.00027397,2]
[377506350,1754434241111,-262.69366919,0.00027397,2]
[377506352,1754434241121,-1089.98,0.00027397,2]
[377506354,1754434241130,-946.86,0.00027397,2]
[377506355,1754434241139,-460.0,0.00027397,2]
[377506356,1754434241149,-593.91,0.00027397,2]
[377506357,1754434241158,-460.0,0.00027397,2]
[377506358,1754434241167,-903.13,0.00027397,2]
[377506359,1754434241177,-460.0,0.00027397,2]
[377506360,1754434241186,-460.0,0.00027397,2]
[377506361,1754434241196,-372.69821809,0.00027397,2]
[377506362,1754434241206,-460.0,0.00027397,2]
[377506363,1754434241216,-653.58,0.00027397,2]
[377506364,1754434241225,-1723.5,0.00027397,2]
[377506365,1754434241234,-945.17,0.00027397,2]
[377506366,1754434241244,-460.0,0.00027397,2]
[377506367,1754434241254,-460.0,0.00027397,2]
[377506368,1754434241264,-460.0,0.00027397,2]
[377506369,1754434241273,-460.0,0.00027397,2]
[377506370,1754434241283,-460.0,0.00027397,2]
[377506371,1754434241293,-460.0,0.00027397,2]
[377506372,1754434241302,-1220.99,0.00027397,2]
[377506373,1754434241312,-460.0,0.00027397,2]
[377506374,1754434241323,-677.94,0.00027397,2]
[377506375,1754434241334,-460.0,0.00027397,2]
[377506376,1754434241344,-460.0,0.00027397,2]
[377506377,1754434241354,-460.0,0.00027397,2]
[377506378,1754434241364,-755.25,0.00027397,2]
[377506379,1754434241374,-460.0,0.00027397,2]
[377506380,1754434241383,-460.0,0.00027397,2]
[377506381,1754434241392,-460.0,0.00027397,2]
[377506382,1754434241402,-460.0,0.00027397,2]
[377506383,1754434241411,-460.0,0.00027397,2]
[377506384,1754434241421,-949.33,0.00027397,2]
[377506385,1754434241431,-460.0,0.00027397,2]
[377506386,1754434241441,-460.0,0.00027397,2]
[377506387,1754434241450,-460.0,0.00027397,2]
[377506388,1754434241459,-460.0,0.00027397,2]
[377506389,1754434241469,-1170.65,0.00027397,2]
[377506390,1754434241479,-460.0,0.00027397,2]
[377506391,1754434241488,-460.0,0.00027397,2]
[377506392,1754434241497,-460.0,0.00027397,2]
[377506393,1754434241507,-460.0,0.00027397,2]
[377506394,1754434241516,-460.0,0.00027397,2]
[377506395,1754434241525,-1085.51,0.00027397,2]
[377506396,1754434241534,-840.52,0.00027397,2]
[377506397,1754434241544,-460.0,0.00027397,2]
[377506398,1754434241554,-473.52991264,0.00027397,2]
[377506399,1754434241563,-460.0,0.00027397,2]
[377506400,1754434241572,-499.21,0.00027397,2]
[377506401,1754434241581,-460.0,0.00027397,2]
[377506402,1754434241590,-460.0,0.00027397,2]
[377506403,1754434241599,-242.447344,0.00027471,2]
[377506404,1754434241609,-171.56318597,0.00027473,2]
[377506405,1754434241618,-12990.6920527,0.000275,7]
[377506406,1754434241627,-231.72586818,0.000275,7]
[377506407,1754434241637,-160.0,0.000275,7]
[377506408,1754434241646,-331840.97547536,0.00027571,2]
[377506409,1754434241655,-460.0,0.00027671,2]
[377506410,1754434241665,-460.0,0.00027671,2]
[377506411,1754434241675,-460.0,0.00027671,2]
[377506412,1754434241685,-465.19100007,0.00027671,2]
[377506413,1754434241695,-460.0,0.00027671,2]
[377506414,1754434241706,-460.0,0.00027671,2]
[377506415,1754434241715,-460.0,0.00027671,2]
[377506416,1754434241725,-4437.95,0.00027671,2]
[377506417,1754434241735,-460.0,0.00027671,2]
[377506418,1754434241744,-460.0,0.00027671,2]
[377506419,1754434241753,-460.0,0.00027671,2]
[377506420,1754434241763,-467.97800243,0.00027671,2]
[377506421,1754434241772,-397.66791388,0.00027671,2]
[377506422,1754434241782,-460.0,0.00027671,2]
[377506423,1754434241792,-460.0,0.00027671,2]
[377506424,1754434241801,-460.0,0.00027671,2]
[377506425,1754434241811,-460.0,0.00027671,2]
[377506426,1754434241822,-460.0,0.00027671,2]
[377506427,1754434241832,-460.0,0.00027671,2]
[377506428,1754434241841,-460.0,0.00027671,2]
[377506429,1754434241851,-679.28,0.00027671,2]
[377506430,1754434241860,-1358.46,0.00027671,2]
[377506431,1754434241870,-1225.83,0.00027671,2]
[377506432,1754434241879,-460.0,0.00027671,2]
[377506433,1754434241890,-460.0,0.00027671,2]
[377506434,1754434241900,-460.0,0.00027671,2]
[377506435,1754434241911,-460.0,0.00027671,2]
[377506436,1754434241920,-460.0,0.00027671,2]
[377506437,1754434241931,-460.0,0.00027671,2]
[377506438,1754434241943,-460.0,0.00027671,2]
[377506439,1754434241953,-460.0,0.00027671,2]
[377506441,1754434241963,-4024.09,0.00027671,2]
[377506443,1754434241973,-460.0,0.00027671,2]
[377506445,1754434241982,-1402.42,0.00027671,2]
[377506447,1754434241991,-460.0,0.00027671,2]
[377506449,1754434242000,-460.0,0.00027671,2]
[377506451,1754434242009,-460.0,0.00027671,2]
[377506453,1754434242018,-460.0,0.00027671,2]
[377506455,1754434242027,-460.0,0.00027671,2]
[377506457,1754434242037,-460.0,0.00027671,2]
[377506459,1754434242046,-728.61,0.00027671,2]
[377506461,1754434242055,-460.0,0.00027671,2]
[377506463,1754434242064,-460.0,0.00027671,2]
[377506465,1754434242074,-474.15414276,0.00027671,2]
[377506467,1754434242083,-451.45536678,0.00027671,2]
[377506469,1754434242092,-460.0,0.00027671,2]
[377506471,1754434242101,-460.0,0.00027671,2]
[377506473,1754434242110,-460.0,0.00027671,2]
[377506475,1754434242119,-460.0,0.00027671,2]
[377506477,1754434242128,-436.60008097,0.00027671,2]
[377506521,1754434242473,-23.39991903,0.00027671,2]
[377506524,1754434242483,-5.12850777,0.00027671,2]
[377506572,1754434242925,-461.69525378,0.00027397,2]
[377506574,1754434242936,-460.0,0.00027397,2]
[377506577,1754434242947,-467.7913872,0.00027397,2]
[377506579,1754434242957,-454.87149223,0.00027671,2]
[377506581,1754434242966,-460.0,0.00027671,2]
[377506583,1754434242976,-460.0,0.00027671,2]
[377506585,1754434242987,-460.0,0.00027671,2]
[377506588,1754434242996,-1020.64,0.00027671,2]
[377506591,1754434243006,-465.17304523,0.00027671,2]
[377506594,1754434243016,-460.0,0.00027671,2]
[377506596,1754434243026,-460.0,0.00027671,2]
[377506598,1754434243036,-460.0,0.00027671,2]
[377506600,1754434243045,-825.96,0.00027671,2]
[377506602,1754434243055,-170.79348891,0.00027671,2]
[377506909,1754434246080,-289.20651109,0.00027671,2]
[377506912,1754434246090,-283.77285443,0.00027671,2]
[377510644,1754434286367,-228.67041294,0.00024742,2]
[377512916,1754434801084,10000.0,0.00024551,2]
[377512917,1754434811541,-206.28339,0.00024743,2]
[377512918,1754434811568,-23.00386638,0.00024743,2]
[377512919,1754434814921,-151.69761901,0.00024643,2]
[377512920,1754434816649,-8.45921191,0.00024643,2]
[377512921,1754434816675,-143.54078809,0.00024743,2]
[377512922,1754434819469,-152.38,0.00024743,2]
[377512923,1754434822410,-181.07534553,0.00024743,2]
[377512924,1754434822435,-117.6926771,0.00024743,2]
[377512925,1754434824756,-382.3073229,0.00024743,2]
[377512926,1754434824782,-9.44848673,0.00024743,2]
[377512927,1754434827597,-160.29761901,0.00024743,2]
[377512928,1754434830989,-194.52531801,0.00024743,2]
[377512929,1754434832512,-135.72857625,0.00024743,2]
[377512930,1754434832538,-76.29259092,0.00024743,2]
[377512931,1754434835212,-254.09079337,0.00024743,2]
[377512932,1754434839654,-22.00596316,0.00024743,2]
[377512933,1754434839679,-318.42957223,0.00024743,2]
[377512934,1754434931439,-265.78068782,0.00024743,2]
[377512935,1754434936656,-173.09147578,0.00024743,2]
[377512936,1754434940323,-153.52,0.00024743,2]
[377512937,1754434943267,-168.29021739,0.00024743,2]
[377512938,1754434965869,-491.53315428,0.00024743,2]
[377512939,1754434968059,-166.47829061,0.00024743,2]
[377512940,1754434970272,-157.4253263,0.00024743,2]
[377512942,1754435020618,1064.64,0.000247,120]
[377512944,1754435125363,245.56883,0.00013699,2]
[377512945,1754435125617,245.56883,0.00020187,2]
[377512948,1754435281716,-192.12186415,0.0002457,2]
[377513002,1754435432136,-210.67066885,0.0002457,2]
[377513004,1754435432146,-4818.66337939,0.00024743,2]
[377513006,1754435432156,-1200.0,0.0002494,2]
[377513008,1754435432166,-114.32689585,0.00024941,2]
[377513068,1754435432880,836.83430269,0.00022643,2]
[377513396,1754435438135,-3037.76926105,0.00024941,2]
[377513397,1754435438144,-100.44890766,0.00025085,2]
[377513492,1754435440362,-0.01734068,0.00025085,2]
[377514151,1754435446425,-49.53375166,0.00025085,2]
[377514152,1754435446435,-300.0,0.00025615,2]
[377514153,1754435446444,-500.0,0.00025615,2]
[377514154,1754435446454,-500.0,0.00025615,2]
[377514155,1754435446463,-500.0,0.00025615,2]
[377514156,1754435446472,-201.79165978,0.00025615,2]
[377514157,1754435446482,-500.0,0.00025615,2]
[377514158,1754435446491,-159.582499,0.00025615,2]
[377514159,1754435446500,-500.0,0.00025615,2]
[377514160,1754435446510,-74.00375635,0.00025617,2]
[377514695,1754435452111,918.83257853,0.0002496,14]
[377524923,1754435561404,-300.0,0.00025614,2]
[377524924,1754435561429,-54.72703559,0.00025614,2]
[377525295,1754435566285,-195.25750535,0.00025614,2]
[377525436,1754435568085,-250.01545906,0.00025614,2]
[377525441,1754435568127,-51.28454094,0.00025614,2]
[377525790,1754435571733,-282.39025382,0.00025614,2]
[377525952,1754435573394,-166.32520524,0.00025614,2]
[377525955,1754435573420,-40.65479476,0.00025614,2]
[377526284,1754435576643,-459.34520524,0.00025614,2]
[377526288,1754435576673,-0.65479476,0.00025614,2]
[377526538,1754435579570,-158.7,0.00025614,2]
[377527745,1754435592148,201.447383,0.00024501,2]
[377532004,1754435637053,250.0,0.00025,14]
[377532814,1754435647535,250.0,0.00025,30]
[377533705,1754435657034,250.0,0.00025,30]
[377534590,1754435666410,250.0,0.00025,30]
[377540364,1754435729149,504.0,0.00022,2]
[377540401,1754435729484,504.0,0.00022192,7]
[377540423,1754435729811,504.0,0.00023014,7]
[377540601,1754435731514,177.60974618,0.00024164,7]
[377540605,1754435731541,330.39025382,0.00024164,7]
[377540916,1754435735161,557.88953513,0.00023515,2]
[377541271,1754435828719,252.0,0.00025,7]
[377541272,1754435829084,252.0,0.00024932,7]
[377541273,1754435928543,189.0,0.00025,7]
[377541274,1754435928877,189.0,0.00024932,7]
[377541275,1754436027966,162.0,0.00025,7]
[377541276,1754436028287,162.0,0.00024932,7]
[377541277,1754436036754,371.92635675,0.00023515,2]
[377541278,1754436083650,221.011947,0.00013699,2]
[377541279,1754436083858,221.011947,0.00020187,2]
[377541281,1754436128957,162.0,0.00025,7]
[377541282,1754436228371,162.0,0.00025,7]
[377541283,1754436266760,395.314311,0.00024462,2]
[377541292,1754436318531,205.0135418,0.000301,120]
[377541298,1754436327847,162.0,0.00025,7]
[377541303,1754436337979,247.9509045,0.00023515,2]
[377541319,1754436434056,162.0,0.00025,7]
[377541359,1754436528609,162.0,0.00025,7]
[377541380,1754436603836,161.157906,0.00023664,2]
[377541411,1754436632479,-300.0,0.0002461,2]
[377541414,1754436632489,-339.61457021,0.00024611,2]
[377541417,1754436632499,-500.0,0.00024611,2]
[377541420,1754436632509,-500.0,0.00024611,2]
[377541422,1754436632518,-500.0,0.00024611,2]
[377541424,1754436632528,-500.0,0.00024611,2]
[377541427,1754436632540,-500.0,0.00024611,2]
[377541430,1754436632555,-206.70606614,0.00024611,2]
[377541432,1754436632564,-500.0,0.00024611,2]
[377541434,1754436632573,-500.0,0.00024611,2]
[377541436,1754436632583,-500.0,0.00024611,2]
[377541437,1754436632593,-616.42945628,0.00024611,2]
[377541439,1754436632603,-15.85592539,0.00024611,2]
[377541440,1754436632638,-361.38489998,0.00024611,2]
[377541441,1754436632649,-122.75917463,0.00024611,2]
[377541443,1754436632659,-205.86082537,0.00024611,2]
[377541445,1754436632671,-294.13917463,0.00024611,2]
[377541447,1754436632680,-500.0,0.00024611,2]
[377541448,1754436632690,-500.0,0.00024611,2]
[377541450,1754436632700,-8681.34518171,0.00024612,2]
[377541452,1754436632710,-24900.0,0.00024614,2]
[377541453,1754436632720,-271.38980981,0.00024616,2]
[377541461,1754436638524,-11033.88881527,0.00024613,2]
[377541462,1754436638534,-1314.74785349,0.00024616,2]
[377541463,1754436638546,-2037.2591406,0.00024812,2]
[377541464,1754436638556,-250.0,0.00025505,2]
[377541465,1754436638565,-160.0,0.00025611,2]
[377541466,1754436638574,-160.0,0.00025611,2]
[377541467,1754436638584,-174.36194987,0.00025617,3]
[377541468,1754436638603,-325.0,0.00025617,3]
[377541469,1754436638612,-325.0,0.00025617,3]
[377541470,1754436638623,-325.0,0.00025617,3]
[377541471,1754436638633,-169.0588253,0.00026052,2]
[377541472,1754436638642,-153.0,0.00026085,2]
[377541473,1754436638651,-1538.7778173,0.00026238,2]
[377541474,1754436638660,-221.011947,0.00026676,2]
[377541475,1754436638670,-153.0,0.00026885,2]
[377541476,1754436638680,-306.0,0.00026885,2]
[377541477,1754436638694,-153.0,0.00026907,2]
[377541478,1754436638704,-153.0,0.00026907,2]
[377541479,1754436638714,-156.7680326,0.00026907,2]
[377541480,1754436638728,-153.0,0.00026907,2]
[377541481,1754436638737,-153.0,0.00026907,2]
[377541482,1754436638749,-153.0,0.00026907,2]
[377541483,1754436638758,-153.0,0.00026907,2]
[377541484,1754436638768,-153.0,0.00026907,2]
[377541485,1754436638777,-200.0,0.00027072,15]
[377541486,1754436638787,-300.0,0.00027072,15]
[377541487,1754436638796,-161.157906,0.00027088,2]
[377541488,1754436638805,-227.089872,0.00027228,3]
[377541489,1754436638815,-20000.0,0.00027297,2]
[377541490,1754436638824,-529.66124522,0.00027297,2]
[377541491,1754436638834,-305.38797853,0.00027373,2]
[377541492,1754436638843,-522.56,0.00027387,3]
[377541493,1754436638852,-158.7,0.00027387,10]
[377541494,1754436638861,-557.31513292,0.00027397,2]
[377541495,1754436638871,-460.0,0.00027397,2]
[377541496,1754436638880,-468.34761009,0.00027397,2]
[377541497,1754436638889,-334.4031092,0.00027397,2]
[377541498,1754436638899,-460.0,0.00027397,2]
[377541499,1754436638908,-460.0,0.00027397,2]
[377541500,1754436638917,-460.0,0.00027397,2]
[377541501,1754436638926,-460.0,0.00027397,2]
[377541502,1754436638935,-460.0,0.00027397,2]
[377541503,1754436638944,-460.0,0.00027397,2]
[377541504,1754436638953,-460.0,0.00027397,2]
[377541505,1754436638963,-460.0,0.00027397,2]
[377541506,1754436638972,-482.5637171,0.00027397,2]
[377541507,1754436638981,-460.0,0.00027397,2]
[377541508,1754436638991,-460.0,0.00027397,2]
[377541509,1754436639000,-460.0,0.00027397,2]
[377541510,1754436639009,-460.0,0.00027397,2]
[377541511,1754436639019,-460.0,0.00027397,2]
[377541512,1754436639029,-462.25844587,0.00027397,2]
[377541513,1754436639039,-500.0,0.00027397,2]
[377541514,1754436639049,-460.0,0.00027397,2]
[377541515,1754436639058,-460.0,0.00027397,2]
[377541516,1754436639068,-460.0,0.00027397,2]
[377541517,1754436639078,-460.0,0.00027397,2]
[377541518,1754436639087,-460.0,0.00027397,2]
[377541519,1754436639096,-460.0,0.00027397,2]
[377541520,1754436639107,-460.0,0.00027397,2]
[377541521,1754436639116,-460.0,0.00027397,2]
[377541522,1754436639126,-460.0,0.00027397,2]
[377541523,1754436639136,-602.19259852,0.00027397,2]
[377541524,1754436639147,-473.45430432,0.00027397,2]
[377541525,1754436639157,-460.0,0.00027397,2]
[377541526,1754436639169,-460.0,0.00027397,2]
[377541527,1754436639179,-460.0,0.00027397,2]
[377541528,1754436639190,-460.0,0.00027397,2]
[377541529,1754436639201,-460.0,0.00027397,2]
[377541530,1754436639212,-474.41,0.00027397,2]
[377541531,1754436639222,-460.0,0.00027397,2]
[377541532,1754436639232,-460.0,0.00027397,2]
[377541533,1754436639241,-460.0,0.00027397,2]
[377541534,1754436639250,-460.0,0.00027397,2]
[377541535,1754436639261,-460.0,0.00027397,2]
[377541536,1754436639270,-460.0,0.00027397,2]
[377541537,1754436639280,-460.0,0.00027397,2]
[377541538,1754436639291,-460.0,0.00027397,2]
[377541539,1754436639301,-460.0,0.00027397,2]
[377541540,1754436639311,-460.0,0.00027397,2]
[377541541,1754436639321,-460.0,0.00027397,2]
[377541542,1754436639330,-460.0,0.00027397,2]
[377541543,1754436639340,-460.0,0.00027397,2]
[377541544,1754436639351,-460.0,0.00027397,2]
[377541545,1754436639362,-919.73,0.00027397,2]
[377541546,1754436639372,-460.0,0.00027397,2]
[377541547,1754436639382,-460.0,0.00027397,2]
[377541548,1754436639393,-460.0,0.00027397,2]
[377541549,1754436639403,-728.33,0.00027397,2]
[377541550,1754436639412,-460.0,0.00027397,2]
[377541551,1754436639421,-474.71259427,0.00027397,2]
[377541552,1754436639431,-460.0,0.00027397,2]
[377541553,1754436639440,-460.0,0.00027397,2]
[377541554,1754436639449,-460.0,0.00027397,2]
[377541555,1754436639459,-463.49832866,0.00027397,2]
[377541556,1754436639468,-460.0,0.00027397,2]
[377541557,1754436639478,-509.39857511,0.00027397,2]
[377541558,1754436639486,-460.0,0.00027397,2]
[377541559,1754436639495,-460.0,0.00027397,2]
[377541560,1754436639504,-460.0,0.00027397,2]
[377541561,1754436639514,-460.0,0.00027397,2]
[377541562,1754436639523,-460.0,0.00027397,2]
[377541563,1754436639533,-460.0,0.00027397,2]
[377541564,1754436639544,-500.0,0.00027397,2]
[377541565,1754436639555,-460.0,0.00027397,2]
[377541566,1754436639565,-460.0,0.00027397,2]
[377541567,1754436639574,-460.0,0.00027397,2]
[377541568,1754436639584,-460.0,0.00027397,2]
[377541569,1754436639594,-461.2092958,0.00027397,2]
[377541570,1754436639603,-252.05064794,0.00027397,2]
[377541571,1754436639612,-460.0,0.00027397,2]
[377541572,1754436639622,-460.0,0.00027397,2]
[377541573,1754436639632,-460.0,0.00027397,2]
[377541574,1754436639641,-460.0,0.00027397,2]
[377541575,1754436639650,-460.0,0.00027397,2]
[377541577,1754436639660,-460.0,0.00027397,2]
[377541578,1754436639669,-735.19,0.00027397,2]
[377541579,1754436639679,-500.0,0.00027397,2]
[377541580,1754436639689,-330.34100537,0.00027397,2]
[377541581,1754436639699,-460.0,0.00027397,2]
[377541582,1754436639708,-460.0,0.00027397,2]
[377541583,1754436639718,-460.0,0.00027397,2]
[377541584,1754436639727,-460.0,0.00027397,2]
[377541585,1754436639737,-460.0,0.00027397,2]
[377541586,1754436639748,-460.0,0.00027397,2]
[377541587,1754436639758,-2152.56,0.00027397,2]
[377541588,1754436639768,-460.0,0.00027397,2]
[377541589,1754436639778,-2152.56,0.00027397,2]
[377541590,1754436639787,-460.0,0.00027397,2]
[377541591,1754436639796,-553.75593702,0.00027397,2]
[377541592,1754436639806,-460.0,0.00027397,2]
[377541593,1754436639815,-460.0,0.00027397,2]
[377541594,1754436639825,-460.0,0.00027397,2]
[377541595,1754436639835,-467.44737953,0.00027397,2]
[377541596,1754436639845,-258.53356492,0.00027397,2]
[377541598,1754436639855,-460.0,0.00027397,2]
[377541599,1754436639864,-460.0,0.00027397,2]
[377541601,1754436639874,-460.0,0.00027397,2]
[377541602,1754436639883,-460.0,0.00027397,2]
[377541603,1754436639893,-460.0,0.00027397,2]
[377541604,1754436639902,-460.0,0.00027397,2]
[377541605,1754436639911,-473.02787469,0.00027397,2]
[377541606,1754436639921,-460.0,0.00027397,2]
[377541607,1754436639930,-460.0,0.00027397,2]
[377541608,1754436639939,-460.0,0.00027397,2]
[377541609,1754436639950,-462.75776929,0.00027397,2]
[377541610,1754436639960,-460.0,0.00027397,2]
[377541611,1754436639969,-460.0,0.00027397,2]
[377541612,1754436639979,-460.0,0.00027397,2]
[377541613,1754436639988,-460.0,0.00027397,2]
[377541614,1754436639997,-460.0,0.00027397,2]
[377541615,1754436640007,-460.0,0.00027397,2]
[377541616,1754436640016,-460.0,0.00027397,2]
[377541617,1754436640026,-460.0,0.00027397,2]
[377541618,1754436640035,-460.0,0.00027397,2]
[377541619,1754436640045,-460.0,0.00027397,2]
[377541621,1754436640055,-460.0,0.00027397,2]
[377541622,1754436640064,-460.0,0.00027397,2]
[377541624,1754436640074,-314.72339002,0.00027397,2]
[377541626,1754436640084,-460.0,0.00027397,2]
[377541628,1754436640094,-460.0,0.00027397,2]
[377541629,1754436640103,-460.0,0.00027397,2]
[377541630,1754436640112,-460.0,0.00027397,2]
[377541631,1754436640122,-460.0,0.00027397,2]
[377541632,1754436640131,-460.0,0.00027397,2]
[377541633,1754436640140,-460.0,0.00027397,2]
[377541634,1754436640149,-460.0,0.00027397,2]